[Event "Titled Tuesday Blitz February 15 Late 2022"]
[White "Degardin, Sylvain"]
[Black "Goryachkina, Aleksandra"]
[WhiteFideId "20623070"]
[BlackFideId "4147103"]
[WhiteElo "2156"]
[BlackElo "2426"]
[Result "1/2-1/2"]
[Round "06"]
[TimeControl "180+1"]
[Date "2022.02.16"]
[WhiteClock "0:00:04"]
[BlackClock "0:00:05"]

1. d4 {[%clk 0:03:00]}  d5 {[%clk 0:02:59]} 2. c4 {[%clk 0:02:59]}  dxc4 {[%clk 0:02:59]} 3. e4 {[%clk 0:02:57]}  e5 {[%clk 0:02:57]} 4. Nf3 {[%clk 0:02:55]}  Bb4+ {[%clk 0:02:53]} 5. Nc3 {[%clk 0:02:53]}  exd4 {[%clk 0:02:47]} 6. Qxd4 {[%clk 0:02:51]}  Qxd4 {[%clk 0:02:44]} 7. Nxd4 {[%clk 0:02:52]}  Nf6 {[%clk 0:02:42]} 8. f3 {[%clk 0:02:48]}  O-O {[%clk 0:02:35]} 9. Bxc4 {[%clk 0:02:47]}  Nbd7 {[%clk 0:02:31]} 10. Bd2 {[%clk 0:02:44]}  Ne5 {[%clk 0:02:29]} 11. Be2 {[%clk 0:02:41]}  Rd8 {[%clk 0:02:26]} 12. Nc2 {[%clk 0:02:39]}  Be7 {[%clk 0:02:20]} 13. Bf4 {[%clk 0:02:29]}  Bd6 {[%clk 0:02:04]} 14. Bg5 {[%clk 0:02:19]}  h6 {[%clk 0:01:58]} 15. Bxf6 {[%clk 0:02:18]}  gxf6 {[%clk 0:01:58]} 16. O-O-O {[%clk 0:02:14]}  Ng6 {[%clk 0:01:49]} 17. g3 {[%clk 0:02:12]}  Bd7 {[%clk 0:01:47]} 18. f4 {[%clk 0:02:03]}  Re8 {[%clk 0:01:38]} 19. Bf3 {[%clk 0:02:01]}  Rad8 {[%clk 0:01:34]} 20. Nd5 {[%clk 0:01:58]}  Kg7 {[%clk 0:01:32]} 21. Rhe1 {[%clk 0:01:56]}  Bc6 {[%clk 0:01:26]} 22. Nd4 {[%clk 0:01:48]}  Bd7 {[%clk 0:00:59]} 23. Nf5+ {[%clk 0:01:40]}  Bxf5 {[%clk 0:00:58]} 24. exf5 {[%clk 0:01:41]}  Rxe1 {[%clk 0:00:54]} 25. Rxe1 {[%clk 0:01:42]}  Nf8 {[%clk 0:00:52]} 26. Nc3 {[%clk 0:01:32]}  c6 {[%clk 0:00:52]} 27. Rd1 {[%clk 0:01:29]}  Bc7 {[%clk 0:00:51]} 28. Rxd8 {[%clk 0:01:28]}  Bxd8 {[%clk 0:00:52]} 29. Ne4 {[%clk 0:01:27]}  Be7 {[%clk 0:00:48]} 30. Kc2 {[%clk 0:01:21]}  Nd7 {[%clk 0:00:49]} 31. Kd3 {[%clk 0:01:18]}  Nc5+ {[%clk 0:00:48]} 32. Nxc5 {[%clk 0:01:18]}  Bxc5 {[%clk 0:00:49]} 33. h3 {[%clk 0:01:14]}  Kf8 {[%clk 0:00:49]} 34. g4 {[%clk 0:01:13]}  Ke7 {[%clk 0:00:49]} 35. b3 {[%clk 0:01:12]}  Kd6 {[%clk 0:00:48]} 36. Bg2 {[%clk 0:01:12]}  b5 {[%clk 0:00:44]} 37. Bf3 {[%clk 0:01:11]}  Bf2 {[%clk 0:00:42]} 38. Be2 {[%clk 0:01:04]}  Kc5 {[%clk 0:00:30]} 39. a4 {[%clk 0:01:02]}  a5 {[%clk 0:00:29]} 40. Bd1 {[%clk 0:00:58]}  Kb4 {[%clk 0:00:27]} 41. Bc2 {[%clk 0:00:54]}  bxa4 {[%clk 0:00:20]} 42. bxa4 {[%clk 0:00:54]}  c5 {[%clk 0:00:20]} 43. Bd1 {[%clk 0:00:21]}  c4+ {[%clk 0:00:20]} 44. Ke4 {[%clk 0:00:18]}  Kc3 {[%clk 0:00:11]} 45. Be2 {[%clk 0:00:16]}  Kb3 {[%clk 0:00:11]} 46. Bd1+ {[%clk 0:00:17]}  Kb2 {[%clk 0:00:11]} 47. Kf3 {[%clk 0:00:10]}  Bc5 {[%clk 0:00:10]} 48. Ke4 {[%clk 0:00:10]}  c3 {[%clk 0:00:08]} 49. Kd3 {[%clk 0:00:11]}  Bd6 {[%clk 0:00:08]} 50. Bc2 {[%clk 0:00:10]}  Bxf4 {[%clk 0:00:08]} 51. Bd1 {[%clk 0:00:10]}  Be5 {[%clk 0:00:07]} 52. Bc2 {[%clk 0:00:10]}  Kc1 {[%clk 0:00:06]} 53. Bb3 {[%clk 0:00:10]}  Kb2 {[%clk 0:00:06]} 54. Bc2 {[%clk 0:00:10]}  Ka3 {[%clk 0:00:07]} 55. Bd1 {[%clk 0:00:10]}  Kb4 {[%clk 0:00:07]} 56. Bc2 {[%clk 0:00:10]}  Kc5 {[%clk 0:00:07]} 57. Bd1 {[%clk 0:00:10]}  Kb4 {[%clk 0:00:06]} 58. Bc2 {[%clk 0:00:10]}  Kc5 {[%clk 0:00:06]} 59. Bd1 {[%clk 0:00:11]}  Bd4 {[%clk 0:00:05]} 60. Bc2 {[%clk 0:00:11]}  Kd5 {[%clk 0:00:05]} 61. Bb3+ {[%clk 0:00:11]}  Ke5 {[%clk 0:00:05]} 62. Bxf7 {[%clk 0:00:11]}  Kf4 {[%clk 0:00:05]} 63. Bb3 {[%clk 0:00:10]}  Be5 {[%clk 0:00:04]} 64. Bd1 {[%clk 0:00:08]}  Kg3 {[%clk 0:00:04]} 65. Kc2 {[%clk 0:00:06]}  Kxh3 {[%clk 0:00:05]} 66. Kd3 {[%clk 0:00:07]}  Kg3 {[%clk 0:00:05]} 67. Ke3 {[%clk 0:00:06]}  Kg2 {[%clk 0:00:03]} 68. Ke2 {[%clk 0:00:06]}  Bf4 {[%clk 0:00:03]} 69. Bc2 {[%clk 0:00:06]}  Kg3 {[%clk 0:00:02]} 70. Kd3 {[%clk 0:00:05]}  Kxg4 {[%clk 0:00:03]} 71. Kxc3 {[%clk 0:00:05]}  h5 {[%clk 0:00:03]} 72. Kd3 {[%clk 0:00:03]}  h4 {[%clk 0:00:02]} 73. Ke2 {[%clk 0:00:03]}  Kg3 {[%clk 0:00:03]} 74. Kf1 {[%clk 0:00:03]}  Be3 {[%clk 0:00:03]} 75. Be4 {[%clk 0:00:03]}  h3 {[%clk 0:00:03]} 76. Bd5 {[%clk 0:00:02]}  h2 {[%clk 0:00:03]} 77. Be4 {[%clk 0:00:02]}  Kf4 {[%clk 0:00:03]} 78. Bc6 {[%clk 0:00:01]}  Kxf5 {[%clk 0:00:02]} 79. Kg2 {[%clk 0:00:01]}  Bf4 {[%clk 0:00:03]} 80. Kh1 {[%clk 0:00:02]}  Ke5 {[%clk 0:00:03]} 81. Kg2 {[%clk 0:00:02]}  Kd4 {[%clk 0:00:03]} 82. Kh1 {[%clk 0:00:02]}  Ke3 {[%clk 0:00:04]} 83. Kg2 {[%clk 0:00:02]}  Be5 {[%clk 0:00:04]} 84. Bb7 {[%clk 0:00:01]}  f5 {[%clk 0:00:04]} 85. Bc6 {[%clk 0:00:02]}  Bd6 {[%clk 0:00:04]} 86. Bb7 {[%clk 0:00:02]}  f4 {[%clk 0:00:02]} 87. Bc6 {[%clk 0:00:02]}  Bc5 {[%clk 0:00:01]} 88. Bd5 {[%clk 0:00:02]}  Bd4 {[%clk 0:00:02]} 89. Bc6 {[%clk 0:00:03]}  h1=Q+ {[%clk 0:00:02]} 90. Kxh1 {[%clk 0:00:02]}  f3 {[%clk 0:00:03]} 91. Kg1 {[%clk 0:00:03]}  Ke2+ {[%clk 0:00:03]} 92. Kh2 {[%clk 0:00:02]}  f2 {[%clk 0:00:03]} 93. Bb5+ {[%clk 0:00:02]}  Ke1 {[%clk 0:00:03]} 94. Kg2 {[%clk 0:00:02]}  Bc5 {[%clk 0:00:04]} 95. Bf1 {[%clk 0:00:03]}  Bd4 {[%clk 0:00:04]} 96. Bb5 {[%clk 0:00:03]}  Bc5 {[%clk 0:00:05]} 97. Bf1 {[%clk 0:00:04]}  Bd4 {[%clk 0:00:05]} 98. Bb5 {[%clk 0:00:04]} 1/2-1/2


[Site "https://www.chess.com"]

[Event "Titled Tuesday Blitz February 15 Late 2022"]
[White "Dreev, Aleksey"]
[Black "Vidit, Santosh Gujrathi"]
[WhiteFideId "4100107"]
[BlackFideId "5029465"]
[WhiteElo "2636"]
[BlackElo "2654"]
[Result "1/2-1/2"]
[Round "06"]
[TimeControl "180+1"]
[Date "2022.02.15"]
[WhiteClock "0:00:06"]
[BlackClock "0:00:02"]

1. d4 {[%clk 0:02:57]}  Nf6 {[%clk 0:02:59]} 2. c4 {[%clk 0:02:57]}  e6 {[%clk 0:02:59]} 3. Nc3 {[%clk 0:02:56]}  Bb4 {[%clk 0:02:59]} 4. Qc2 {[%clk 0:02:56]}  O-O {[%clk 0:02:53]} 5. a3 {[%clk 0:02:56]}  Bxc3+ {[%clk 0:02:53]} 6. Qxc3 {[%clk 0:02:57]}  d6 {[%clk 0:02:50]} 7. Nf3 {[%clk 0:02:55]}  Re8 {[%clk 0:02:47]} 8. Bg5 {[%clk 0:02:50]}  h6 {[%clk 0:02:46]} 9. Bh4 {[%clk 0:02:50]}  Nbd7 {[%clk 0:02:40]} 10. e3 {[%clk 0:02:50]}  g5 {[%clk 0:02:35]} 11. Bg3 {[%clk 0:02:49]}  Ne4 {[%clk 0:02:36]} 12. Qc2 {[%clk 0:02:50]}  f5 {[%clk 0:02:36]} 13. Bd3 {[%clk 0:02:48]}  Ndf6 {[%clk 0:02:36]} 14. O-O-O {[%clk 0:02:28]}  b6 {[%clk 0:02:23]} 15. h4 {[%clk 0:02:25]}  g4 {[%clk 0:02:17]} 16. Nd2 {[%clk 0:02:25]}  Nxg3 {[%clk 0:02:16]} 17. fxg3 {[%clk 0:02:25]}  Nh5 {[%clk 0:02:12]} 18. e4 {[%clk 0:01:57]}  Nxg3 {[%clk 0:02:10]} 19. Rhe1 {[%clk 0:01:57]}  f4 {[%clk 0:02:00]} 20. e5 {[%clk 0:01:56]}  Kh8 {[%clk 0:01:15]} 21. d5 {[%clk 0:01:25]}  dxe5 {[%clk 0:00:42]} 22. Rxe5 {[%clk 0:01:21]}  Qf6 {[%clk 0:00:42]} 23. Rde1 {[%clk 0:01:13]}  f3 {[%clk 0:00:31]} 24. gxf3 {[%clk 0:01:12]}  gxf3 {[%clk 0:00:32]} 25. Nxf3 {[%clk 0:00:59]}  Qxf3 {[%clk 0:00:31]} 26. Qc3 {[%clk 0:00:59]}  Qf6 {[%clk 0:00:26]} 27. Bc2 {[%clk 0:01:00]}  Rg8 {[%clk 0:00:18]} 28. dxe6 {[%clk 0:00:32]}  Bb7 {[%clk 0:00:18]} 29. e7 {[%clk 0:00:30]}  Rae8 {[%clk 0:00:18]} 30. Kb1 {[%clk 0:00:26]}  Rg7 {[%clk 0:00:18]} 31. Qe3 {[%clk 0:00:22]}  Bc8 {[%clk 0:00:10]} 32. h5 {[%clk 0:00:22]}  Bf5 {[%clk 0:00:06]} 33. Bxf5 {[%clk 0:00:15]}  Nxf5 {[%clk 0:00:07]} 34. Qf4 {[%clk 0:00:15]}  Rf7 {[%clk 0:00:07]} 35. Rf1 {[%clk 0:00:15]}  Rexe7 {[%clk 0:00:07]} 36. Rxf5 {[%clk 0:00:13]}  Qxf5+ {[%clk 0:00:03]} 37. Qxf5 {[%clk 0:00:14]}  Rxf5 {[%clk 0:00:04]} 38. Rxf5 {[%clk 0:00:14]}  Kg7 {[%clk 0:00:05]} 39. c5 {[%clk 0:00:12]}  Rf7 {[%clk 0:00:04]} 40. Rd5 {[%clk 0:00:10]}  Kf6 {[%clk 0:00:05]} 41. c6 {[%clk 0:00:08]}  Ke6 {[%clk 0:00:05]} 42. Rd8 {[%clk 0:00:09]}  Rf5 {[%clk 0:00:03]} 43. Rd7 {[%clk 0:00:09]}  Rf7 {[%clk 0:00:04]} 44. Rd8 {[%clk 0:00:09]}  a5 {[%clk 0:00:04]} 45. Kc2 {[%clk 0:00:08]}  Ke5 {[%clk 0:00:05]} 46. Rd7 {[%clk 0:00:08]}  Ke6 {[%clk 0:00:05]} 47. Rd8 {[%clk 0:00:07]}  Rf5 {[%clk 0:00:04]} 48. Rc8 {[%clk 0:00:06]}  Kd6 {[%clk 0:00:04]} 49. Rg8 {[%clk 0:00:04]}  Rxh5 {[%clk 0:00:04]} 50. Rg6+ {[%clk 0:00:04]}  Kc5 {[%clk 0:00:04]} 51. b3 {[%clk 0:00:04]}  b5 {[%clk 0:00:04]} 52. Kc3 {[%clk 0:00:04]}  Rh3+ {[%clk 0:00:04]} 53. Kc2 {[%clk 0:00:05]}  h5 {[%clk 0:00:04]} 54. a4 {[%clk 0:00:04]}  bxa4 {[%clk 0:00:04]} 55. bxa4 {[%clk 0:00:05]}  h4 {[%clk 0:00:04]} 56. Rg5+ {[%clk 0:00:06]}  Kb6 {[%clk 0:00:03]} 57. Rb5+ {[%clk 0:00:05]}  Kxc6 {[%clk 0:00:04]} 58. Rxa5 {[%clk 0:00:06]}  Ra3 {[%clk 0:00:04]} 59. Ra6+ {[%clk 0:00:05]}  Kb7 {[%clk 0:00:04]} 60. Ra5 {[%clk 0:00:06]}  h3 {[%clk 0:00:04]} 61. Rh5 {[%clk 0:00:06]}  Rg3 {[%clk 0:00:04]} 62. Kb2 {[%clk 0:00:05]}  Kb6 {[%clk 0:00:04]} 63. a5+ {[%clk 0:00:05]}  Ka6 {[%clk 0:00:05]} 64. Kc2 {[%clk 0:00:06]}  c6 {[%clk 0:00:05]} 65. Kb2 {[%clk 0:00:06]}  Rf3 {[%clk 0:00:05]} 66. Kc2 {[%clk 0:00:07]}  Re3 {[%clk 0:00:05]} 67. Kd2 {[%clk 0:00:07]}  Rg3 {[%clk 0:00:05]} 68. Kc2 {[%clk 0:00:07]}  Ra3 {[%clk 0:00:05]} 69. Kb2 {[%clk 0:00:07]}  Re3 {[%clk 0:00:05]} 70. Kc2 {[%clk 0:00:07]}  Kb7 {[%clk 0:00:05]} 71. Kd2 {[%clk 0:00:08]}  Rg3 {[%clk 0:00:05]} 72. Kc2 {[%clk 0:00:08]}  Rg2+ {[%clk 0:00:06]} 73. Kc3 {[%clk 0:00:08]}  h2 {[%clk 0:00:06]} 74. Kc4 {[%clk 0:00:08]}  Ka6 {[%clk 0:00:07]} 75. Kb4 {[%clk 0:00:08]}  Rc2 {[%clk 0:00:07]} 76. Kb3 {[%clk 0:00:08]}  Rg2 {[%clk 0:00:07]} 77. Kb4 {[%clk 0:00:08]}  Rf2 {[%clk 0:00:03]} 78. Kc4 {[%clk 0:00:07]}  Re2 {[%clk 0:00:03]} 79. Kb4 {[%clk 0:00:06]}  Rd2 {[%clk 0:00:02]} 80. Kc3 {[%clk 0:00:05]}  Ra2 {[%clk 0:00:02]} 81. Kb3 {[%clk 0:00:06]}  Rg2 {[%clk 0:00:02]} 82. Kb4 {[%clk 0:00:06]} 1/2-1/2


[Site "https://www.chess.com"]

[Event "Titled Tuesday Blitz February 15 Late 2022"]
[White "Dubov, Daniil"]
[Black "Chigaev, Maksim"]
[WhiteFideId "24126055"]
[BlackFideId "4108116"]
[WhiteElo "2791"]
[BlackElo "2502"]
[Result "1-0"]
[Round "06"]
[TimeControl "180+1"]
[Date "2022.02.15"]
[WhiteClock "0:00:04"]
[BlackClock "0:00:01"]

1. d4 {[%clk 0:02:59]}  Nf6 {[%clk 0:02:59]} 2. Bf4 {[%clk 0:02:59]}  d6 {[%clk 0:02:59]} 3. Nc3 {[%clk 0:02:58]}  Nbd7 {[%clk 0:02:59]} 4. Nf3 {[%clk 0:02:58]}  c5 {[%clk 0:02:59]} 5. d5 {[%clk 0:02:53]}  Qa5 {[%clk 0:02:58]} 6. Nd2 {[%clk 0:02:47]}  b5 {[%clk 0:02:51]} 7. a3 {[%clk 0:02:43]}  a6 {[%clk 0:02:51]} 8. e4 {[%clk 0:02:43]}  g6 {[%clk 0:02:51]} 9. Be2 {[%clk 0:02:41]}  Bg7 {[%clk 0:02:50]} 10. O-O {[%clk 0:02:42]}  O-O {[%clk 0:02:50]} 11. Re1 {[%clk 0:02:40]}  Qc7 {[%clk 0:02:40]} 12. Bf1 {[%clk 0:02:21]}  Bb7 {[%clk 0:02:35]} 13. Qc1 {[%clk 0:02:08]}  Rfe8 {[%clk 0:02:33]} 14. a4 {[%clk 0:01:56]}  b4 {[%clk 0:02:30]} 15. Nd1 {[%clk 0:01:55]}  Nh5 {[%clk 0:02:09]} 16. Be3 {[%clk 0:01:55]}  e6 {[%clk 0:02:09]} 17. dxe6 {[%clk 0:01:54]}  Rxe6 {[%clk 0:02:08]} 18. Bc4 {[%clk 0:01:50]}  Ree8 {[%clk 0:02:08]} 19. Qb1 {[%clk 0:01:36]}  Ne5 {[%clk 0:01:55]} 20. Qa2 {[%clk 0:01:21]}  Nxc4 {[%clk 0:01:53]} 21. Qxc4 {[%clk 0:01:21]}  Rad8 {[%clk 0:01:45]} 22. f3 {[%clk 0:01:16]}  d5 {[%clk 0:01:29]} 23. Qxc5 {[%clk 0:01:14]}  Qxc5 {[%clk 0:01:29]} 24. Bxc5 {[%clk 0:01:14]}  dxe4 {[%clk 0:01:29]} 25. Bxb4 {[%clk 0:01:02]}  exf3 {[%clk 0:01:22]} 26. Nxf3 {[%clk 0:00:56]}  Nf4 {[%clk 0:01:07]} 27. Nc3 {[%clk 0:00:45]}  h6 {[%clk 0:01:00]} 28. Rxe8+ {[%clk 0:00:43]}  Rxe8 {[%clk 0:00:59]} 29. Re1 {[%clk 0:00:42]}  Rd8 {[%clk 0:00:44]} 30. Kf2 {[%clk 0:00:42]}  g5 {[%clk 0:00:41]} 31. h3 {[%clk 0:00:37]}  Bc6 {[%clk 0:00:38]} 32. b3 {[%clk 0:00:26]}  Rc8 {[%clk 0:00:26]} 33. Re3 {[%clk 0:00:25]}  f5 {[%clk 0:00:18]} 34. Ba5 {[%clk 0:00:14]}  Be4 {[%clk 0:00:15]} 35. Nxe4 {[%clk 0:00:13]}  fxe4 {[%clk 0:00:15]} 36. Rxe4 {[%clk 0:00:12]}  Rxc2+ {[%clk 0:00:16]} 37. Bd2 {[%clk 0:00:12]}  Rb2 {[%clk 0:00:09]} 38. Kf1 {[%clk 0:00:10]}  Nd3 {[%clk 0:00:05]} 39. b4 {[%clk 0:00:08]}  Rb1+ {[%clk 0:00:04]} 40. Ke2 {[%clk 0:00:08]}  Nb2 {[%clk 0:00:04]} 41. Re6 {[%clk 0:00:08]}  Nxa4 {[%clk 0:00:04]} 42. Rxa6 {[%clk 0:00:07]}  Nc3+ {[%clk 0:00:05]} 43. Kd3 {[%clk 0:00:06]}  Nd5 {[%clk 0:00:04]} 44. Ke4 {[%clk 0:00:04]}  Nf6+ {[%clk 0:00:02]} 45. Kf5 {[%clk 0:00:04]}  Ne8 {[%clk 0:00:01]} 46. Kg6 {[%clk 0:00:04]} 1-0


[Site "https://www.chess.com"]

[Event "Titled Tuesday Blitz February 15 Late 2022"]
[White "Gatterer, Florian"]
[Black "Domingo Nunez, Alejandro"]
[WhiteFideId "811688"]
[BlackFideId "22245561"]
[WhiteElo "2218"]
[BlackElo "2215"]
[Result "0-1"]
[Round "06"]
[TimeControl "180+1"]
[Date "2022.02.16"]
[WhiteClock "0:00:27"]
[BlackClock "0:02:10"]

1. Nf3 {[%clk 0:03:00]}  g6 {[%clk 0:02:58]} 2. e4 {[%clk 0:02:59]}  Bg7 {[%clk 0:02:59]} 3. d4 {[%clk 0:02:59]}  c6 {[%clk 0:03:00]} 4. c4 {[%clk 0:02:55]}  d5 {[%clk 0:03:00]} 5. Nc3 {[%clk 0:02:53]}  dxe4 {[%clk 0:03:00]} 6. Nxe4 {[%clk 0:02:53]}  Nf6 {[%clk 0:03:01]} 7. Nxf6+ {[%clk 0:02:53]}  exf6 {[%clk 0:03:00]} 8. Be2 {[%clk 0:02:51]}  O-O {[%clk 0:03:01]} 9. O-O {[%clk 0:02:51]}  Re8 {[%clk 0:03:02]} 10. h3 {[%clk 0:02:49]}  Na6 {[%clk 0:03:01]} 11. Be3 {[%clk 0:02:47]}  Bf5 {[%clk 0:02:59]} 12. a3 {[%clk 0:02:45]}  Qd7 {[%clk 0:02:59]} 13. Nh4 {[%clk 0:02:44]}  Be6 {[%clk 0:02:59]} 14. Qc2 {[%clk 0:02:39]}  Bf8 {[%clk 0:02:58]} 15. Rfd1 {[%clk 0:02:33]}  Bd6 {[%clk 0:02:58]} 16. d5 {[%clk 0:02:23]}  cxd5 {[%clk 0:02:58]} 17. cxd5 {[%clk 0:02:23]}  Bxh3 {[%clk 0:02:58]} 18. gxh3 {[%clk 0:02:16]}  Qxh3 {[%clk 0:02:59]} 19. Nf3 {[%clk 0:02:11]}  g5 {[%clk 0:02:25]} 20. Rd4 {[%clk 0:01:29]}  Rac8 {[%clk 0:02:20]} 21. Qb1 {[%clk 0:01:01]}  Nc5 {[%clk 0:02:14]} 22. b4 {[%clk 0:00:58]}  Na4 {[%clk 0:02:13]} 23. Nxg5 {[%clk 0:00:27]}  Qh2+ {[%clk 0:02:09]} 24. Kf1 {[%clk 0:00:27]}  Qh1# {[%clk 0:02:10]} 0-1


[Site "https://www.chess.com"]

[Event "Titled Tuesday Blitz February 15 Late 2022"]
[White "Hambleton, Aman"]
[Black "Iturrizaga Bonelli, Eduardo"]
[WhiteFideId "2606577"]
[BlackFideId "3901211"]
[WhiteElo "2552"]
[BlackElo "2646"]
[Result "0-1"]
[Round "06"]
[TimeControl "180+1"]
[Date "2022.02.15"]
[WhiteClock "0:00:02"]
[BlackClock "0:00:06"]

1. d4 {[%clk 0:03:00]}  Nf6 {[%clk 0:03:00]} 2. Bf4 {[%clk 0:02:58]}  g6 {[%clk 0:03:00]} 3. Nc3 {[%clk 0:02:56]}  Bg7 {[%clk 0:02:59]} 4. e4 {[%clk 0:02:55]}  d6 {[%clk 0:03:00]} 5. Qd2 {[%clk 0:02:54]}  c6 {[%clk 0:03:00]} 6. O-O-O {[%clk 0:02:49]}  b5 {[%clk 0:03:00]} 7. f3 {[%clk 0:02:44]}  b4 {[%clk 0:02:56]} 8. Nce2 {[%clk 0:02:44]}  Qa5 {[%clk 0:02:54]} 9. Kb1 {[%clk 0:02:43]}  O-O {[%clk 0:02:52]} 10. Bh6 {[%clk 0:02:36]}  e5 {[%clk 0:02:48]} 11. Nc1 {[%clk 0:02:12]}  Be6 {[%clk 0:02:43]} 12. Nge2 {[%clk 0:02:00]}  Nbd7 {[%clk 0:02:41]} 13. h4 {[%clk 0:01:51]}  Nb6 {[%clk 0:02:34]} 14. Nb3 {[%clk 0:01:51]}  Qa4 {[%clk 0:02:08]} 15. h5 {[%clk 0:01:19]}  Nc4 {[%clk 0:02:08]} 16. Qc1 {[%clk 0:01:19]}  a5 {[%clk 0:01:43]} 17. hxg6 {[%clk 0:01:16]}  fxg6 {[%clk 0:01:43]} 18. Bxg7 {[%clk 0:01:10]}  Kxg7 {[%clk 0:01:44]} 19. Qh6+ {[%clk 0:01:01]}  Kg8 {[%clk 0:01:43]} 20. g4 {[%clk 0:00:43]}  Rf7 {[%clk 0:01:14]} 21. dxe5 {[%clk 0:00:36]}  dxe5 {[%clk 0:01:09]} 22. g5 {[%clk 0:00:29]}  Nd7 {[%clk 0:01:03]} 23. f4 {[%clk 0:00:30]}  exf4 {[%clk 0:00:37]} 24. Ned4 {[%clk 0:00:27]}  Nxb2 {[%clk 0:00:33]} 25. Kxb2 {[%clk 0:00:10]}  Qa3+ {[%clk 0:00:33]} 26. Kb1 {[%clk 0:00:11]}  a4 {[%clk 0:00:34]} 27. Rh2 {[%clk 0:00:03]}  axb3 {[%clk 0:00:15]} 28. cxb3 {[%clk 0:00:04]}  Ne5 {[%clk 0:00:13]} 29. Nxe6 {[%clk 0:00:03]}  Ng4 {[%clk 0:00:13]} 30. Qh3 {[%clk 0:00:03]}  Ne3 {[%clk 0:00:08]} 31. Rc1 {[%clk 0:00:02]}  f3 {[%clk 0:00:07]} 32. Bc4 {[%clk 0:00:02]}  f2 {[%clk 0:00:07]} 33. Rhh1 {[%clk 0:00:02]}  Qxa2# {[%clk 0:00:06]} 0-1


[Site "https://www.chess.com"]

[Event "Titled Tuesday Blitz February 15 Late 2022"]
[White "Hamley, Ryan"]
[Black "Dev, Shah"]
[WhiteFideId "30959497"]
[BlackFideId "35019058"]
[WhiteElo "2419"]
[BlackElo "2098"]
[Result "1-0"]
[Round "06"]
[TimeControl "180+1"]
[Date "2022.02.16"]
[WhiteClock "0:01:25"]
[BlackClock "0:00:14"]

1. d4 {[%clk 0:03:00]}  d5 {[%clk 0:02:58]} 2. c4 {[%clk 0:03:01]}  c6 {[%clk 0:02:58]} 3. Nf3 {[%clk 0:02:58]}  Nf6 {[%clk 0:02:58]} 4. e3 {[%clk 0:02:59]}  e6 {[%clk 0:02:58]} 5. Qc2 {[%clk 0:02:57]}  Nbd7 {[%clk 0:02:57]} 6. Nbd2 {[%clk 0:02:54]}  Bd6 {[%clk 0:02:53]} 7. b3 {[%clk 0:02:54]}  b6 {[%clk 0:02:54]} 8. Bb2 {[%clk 0:02:55]}  Bb7 {[%clk 0:02:54]} 9. Bd3 {[%clk 0:02:55]}  Qc7 {[%clk 0:02:50]} 10. O-O {[%clk 0:02:54]}  O-O {[%clk 0:02:48]} 11. Rac1 {[%clk 0:02:52]}  Rac8 {[%clk 0:02:47]} 12. Rfe1 {[%clk 0:02:52]}  h6 {[%clk 0:02:45]} 13. h3 {[%clk 0:02:50]}  c5 {[%clk 0:02:44]} 14. Qb1 {[%clk 0:02:48]}  Qb8 {[%clk 0:02:44]} 15. e4 {[%clk 0:02:36]}  dxe4 {[%clk 0:02:41]} 16. Nxe4 {[%clk 0:02:37]}  Nxe4 {[%clk 0:02:39]} 17. Bxe4 {[%clk 0:02:37]}  Bxe4 {[%clk 0:02:39]} 18. Qxe4 {[%clk 0:02:36]}  Nf6 {[%clk 0:02:39]} 19. Qh4 {[%clk 0:02:36]}  Be7 {[%clk 0:02:32]} 20. dxc5 {[%clk 0:02:31]}  Rxc5 {[%clk 0:02:22]} 21. Red1 {[%clk 0:02:22]}  Rd8 {[%clk 0:02:17]} 22. Rxd8+ {[%clk 0:02:06]}  Qxd8 {[%clk 0:02:16]} 23. Qg3 {[%clk 0:02:06]}  Rf5 {[%clk 0:01:55]} 24. Nd4 {[%clk 0:02:01]}  Rg5 {[%clk 0:01:46]} 25. Qf3 {[%clk 0:01:51]}  Bc5 {[%clk 0:01:39]} 26. Rd1 {[%clk 0:01:50]}  Bxd4 {[%clk 0:01:10]} 27. Bxd4 {[%clk 0:01:48]}  Rf5 {[%clk 0:01:02]} 28. Qe2 {[%clk 0:01:37]}  Qe7 {[%clk 0:00:54]} 29. Be5 {[%clk 0:01:36]}  Nd7 {[%clk 0:00:38]} 30. Bd4 {[%clk 0:01:29]}  e5 {[%clk 0:00:33]} 31. Bc3 {[%clk 0:01:28]}  Nc5 {[%clk 0:00:14]} 32. Rd5 {[%clk 0:01:25]} 1-0


[Site "https://www.chess.com"]

[Event "Titled Tuesday Blitz February 15 Late 2022"]
[White "Ibarra Jerez, Jose Carlos"]
[Black "Sargsyan, Anna M."]
[WhiteFideId "2226332"]
[BlackFideId "13308130"]
[WhiteElo "2626"]
[BlackElo "2271"]
[Result "0-1"]
[Round "06"]
[TimeControl "180+1"]
[Date "2022.02.15"]
[WhiteClock "0:01:29"]
[BlackClock "0:00:59"]

1. d4 {[%clk 0:02:55]}  d5 {[%clk 0:02:59]} 2. Nf3 {[%clk 0:02:54]}  Nf6 {[%clk 0:02:59]} 3. Bg5 {[%clk 0:02:55]}  Ne4 {[%clk 0:02:59]} 4. Bc1 {[%clk 0:02:55]}  Nf6 {[%clk 0:02:58]} 5. Bf4 {[%clk 0:02:53]}  c5 {[%clk 0:02:57]} 6. e3 {[%clk 0:02:52]}  Nc6 {[%clk 0:02:56]} 7. c3 {[%clk 0:02:50]}  Bg4 {[%clk 0:02:55]} 8. Qb3 {[%clk 0:02:48]}  Qb6 {[%clk 0:02:49]} 9. dxc5 {[%clk 0:02:48]}  Qxb3 {[%clk 0:02:42]} 10. axb3 {[%clk 0:02:47]}  Bxf3 {[%clk 0:02:43]} 11. gxf3 {[%clk 0:02:48]}  e5 {[%clk 0:02:44]} 12. Bg5 {[%clk 0:02:49]}  Bxc5 {[%clk 0:02:44]} 13. b4 {[%clk 0:02:48]}  Bb6 {[%clk 0:02:38]} 14. Nd2 {[%clk 0:02:43]}  Nd7 {[%clk 0:02:38]} 15. Nb3 {[%clk 0:02:31]}  f6 {[%clk 0:02:37]} 16. Bh4 {[%clk 0:02:32]}  h5 {[%clk 0:02:33]} 17. f4 {[%clk 0:02:29]}  exf4 {[%clk 0:02:30]} 18. exf4 {[%clk 0:02:30]}  Ne7 {[%clk 0:02:30]} 19. Bd3 {[%clk 0:02:20]}  Kf7 {[%clk 0:02:29]} 20. Kd1 {[%clk 0:02:17]}  Rhg8 {[%clk 0:02:19]} 21. Rg1 {[%clk 0:02:13]}  g6 {[%clk 0:01:54]} 22. Ke2 {[%clk 0:02:08]}  Nf8 {[%clk 0:01:52]} 23. Kf3 {[%clk 0:02:05]}  Ne6 {[%clk 0:01:51]} 24. Bg3 {[%clk 0:01:55]}  Rh8 {[%clk 0:01:29]} 25. h3 {[%clk 0:01:53]}  h4 {[%clk 0:01:27]} 26. Bh2 {[%clk 0:01:51]}  f5 {[%clk 0:01:27]} 27. Rae1 {[%clk 0:01:50]}  Ng8 {[%clk 0:01:23]} 28. Rxe6 {[%clk 0:01:48]}  Kxe6 {[%clk 0:01:21]} 29. Rxg6+ {[%clk 0:01:48]}  Nf6 {[%clk 0:01:21]} 30. Rg5 {[%clk 0:01:48]}  Ne4 {[%clk 0:01:17]} 31. Rg6+ {[%clk 0:01:44]}  Kf7 {[%clk 0:01:17]} 32. Rg1 {[%clk 0:01:43]}  Rhg8 {[%clk 0:01:14]} 33. Ra1 {[%clk 0:01:36]}  Rae8 {[%clk 0:01:09]} 34. Na5 {[%clk 0:01:35]}  Nxf2 {[%clk 0:01:09]} 35. Bxf5 {[%clk 0:01:30]}  Re3+ {[%clk 0:00:58]} 36. Kxf2 {[%clk 0:01:30]}  Rxh3+ {[%clk 0:00:59]} 37. Ke2 {[%clk 0:01:29]}  Rxh2+ {[%clk 0:00:59]} 0-1


[Site "https://www.chess.com"]